[Event "Charlotte Fall IM-D 2023"]
[Site "Charlotte"]
[Date "2023.11.21"]
[Round "8.2"]
[White "Karthik, Advaith"]
[Black "Girsh, Daniel"]
[Result "0-1"]
[ECO "D38"]
[WhiteElo "2156"]
[BlackElo "2221"]
[Annotator "RC"]
[PlyCount "120"]
[EventDate "2023.11.17"]
[EventType "tourn"]
[EventCountry "USA"]
[SourceTitle "playchess.com"]
[Source "ChessBase"]
[SourceQuality "1"]
[TimeControl "5400+30"]

1. Nf3 {[%emt 0:06:34]} Nf6 {[%emt 0:00:06]} 2. d4 {[%emt 0:00:02]} d5 {[%emt 0:00:55]} 3. c4 {[%emt 0:00:07]} e6 {[%emt 0:00:08]} 4. Bg5 {[%emt 0:00:08]} h6 {[%emt 0:00:15]} 5. Bxf6 {[%emt 0:00:26]} Qxf6 {[%emt 0:00:08]} 6. e3 {[%emt 0:00:01]} Bb4+ {[%emt 0:02:45]} 7. Nc3 {[%emt 0:00:16]} O-O {[%emt 0:00:14]} 8. Qb3 {[%emt 0:02:11]} Nc6 {[%emt 0:01:36]} 9. Be2 {[%emt 0:00:50]} dxc4 {[%emt 0:00:17]} 10. Qxc4 {[%emt 0:00:21]} Bd6 {[%emt 0:04:39]} 11. O-O {[%emt 0:00:46]} e5 {[%emt 0:00:05]} 12. d5 {[%emt 0:05:19]} Nb8 {[%emt 0:05:33]} 13. Rac1 {[%emt 0:03:54]} Bf5 {[%emt 0:01:57]} 14. Ne4 {[%emt 0:04:20]} Bxe4 {[%emt 0:00:54]} 15. Qxe4 {[%emt 0:00:01]} Nd7 {[%emt 0:00:19]} 16. Kh1 {[%emt 0:11:55]} a6 {[%emt 0:02:36]} 17. Qh4 {[%emt 0:04:57]} e4 {[%emt 0:07:38]} 18. Qxe4 {[%emt 0:00:26]} Qxb2 {[%emt 0:00:07]} 19. Rc2 {[%emt 0:02:48]} Qf6 {[%emt 0:02:03]} 20. Rd1 {[%emt 0:05:56]} Rfe8 {[%emt 0:04:53]} 21. Qh4 {[%emt 0:00:52]} Qxh4 {[%emt 0:01:52]} 22. Nxh4 {[%emt 0:00:01]} g6 {[%emt 0:00:02]} 23. g3 {[%emt 0:03:27]} b5 {[%emt 0:01:53]} 24. Nf3 {[%emt 0:03:25]} Nb6 {[%emt 0:02:29]} 25. Nd4 {[%emt 0:00:29]} Na4 {[%emt 0:03:02]} 26. h4 {[%emt 0:09:16]} h5 {[%emt 0:00:28]} 27. Rg1 {[%emt 0:01:19]} Kg7 {[%emt 0:00:29]} 28. g4 {[%emt 0:00:31]} hxg4 {[%emt 0:00:09]} 29. Rxg4 {[%emt 0:00:24]} Kf6 {[%emt 0:00:05]} 30. Nxb5 {[%emt 0:01:16]} axb5 {[%emt 0:00:09]} 31. Bxb5 {[%emt 0:00:02]} Nb6 {[%emt 0:00:17]} 32. Bxe8 {[%emt 0:00:07]} Rxe8 {[%emt 0:00:01]} 33. Rd2 {[%emt 0:06:06]} Ra8 {[%emt 0:02:50]} 34. Kg2 {[%emt 0:03:31]} Na4 {[%emt 0:05:31]} 35. Rc4 {[%emt 0:01:10]} Nb6 {[%emt 0:00:30]} 36. Rcd4 {[%emt 0:01:03]} Be5 {[%emt 0:00:32]} 37. R4d3 {[%emt 0:01:45]} Ke7 {[%emt 0:05:05]} 38. f4 {[%emt 0:04:47]} Bd6 {[%emt 0:00:07]} 39. Kf3 {[%emt 0:00:30]} f5 {[%emt 0:03:54]} 40. Rd4 {[%emt 0:04:04]} Ra3 {[%emt 0:00:52]} 41. Ke2 {[%emt 0:03:45]} Nd7 {[%emt 0:00:43]} 42. R4d3 {[%emt 0:03:09]} Ra8 {[%emt 0:00:21]} 43. Rc2 {[%emt 0:03:53]} Nc5 {[%emt 0:00:39]} 44. Rd4 {[%emt 0:00:49]} Rh8 {[%emt 0:01:25]} 45. a4 {[%emt 0:01:10]} Rxh4 {[%emt 0:00:05]} 46. Kf3 {[%emt 0:00:31]} Rh3+ {[%emt 0:00:04]} 47. Ke2 {[%emt 0:00:04]} Rh2+ {[%emt 0:00:14]} 48. Kd1 {[%emt 0:00:03]} Rh1+ {[%emt 0:00:05]} 49. Ke2 {[%emt 0:00:08]} Ra1 {[%emt 0:00:05]} 50. Rdc4 {[%emt 0:00:14]} Nxa4 {[%emt 0:01:29]} 51. e4 {[%emt 0:00:37]} fxe4 {[%emt 0:00:33]} 52. Rxe4+ {[%emt 0:00:04]} Kf6 {[%emt 0:00:40]} 53. Kf3 {[%emt 0:00:15]} Nb6 {[%emt 0:00:44]} 54. Re6+ {[%emt 0:00:36]} Kf7 {[%emt 0:00:24]} 55. Rg2 {[%emt 0:00:19]} Ra3+ {[%emt 0:00:14]} 56. Ke4 {[%emt 0:00:09]} Ra4+ {[%emt 0:00:01]} 57. Kf3 {[%emt 0:00:14]} Rxf4+ {[%emt 0:00:34]} 58. Ke2 {[%emt 0:00:06]} Rf6 {[%emt 0:01:02]} 59. Rg5 {[%emt 0:00:14]} Nxd5 {[%emt 0:00:14]} 60. Rxf6+ {[%emt 0:00:21]} Nxf6 {[%emt 0:00:20]} 0-1

[Event "Charlotte Fall IM-D 2023"]
[Site "Charlotte"]
[Date "2023.11.21"]
[Round "8.3"]
[White "Matta, Nicholas"]
[Black "Ansh M Shah"]
[Result "1/2-1/2"]
[ECO "E18"]
[WhiteElo "2287"]
[BlackElo "2169"]
[Annotator "RC"]
[PlyCount "196"]
[EventDate "2023.11.17"]
[EventType "tourn"]
[EventCountry "USA"]
[SourceTitle "playchess.com"]
[Source "ChessBase"]
[SourceQuality "1"]
[TimeControl "5400+30"]

1. d4 {[%emt 0:02:07]} Nf6 {[%emt 0:01:38]} 2. Nf3 {[%emt 0:00:16]} e6 {[%emt 0:00:14]} 3. g3 {[%emt 0:00:17]} b6 {[%emt 0:00:41]} 4. Bg2 {[%emt 0:00:24]} Bb7 {[%emt 0:00:09]} 5. O-O {[%emt 0:00:14]} Be7 {[%emt 0:00:49]} 6. c4 {[%emt 0:02:01]} O-O {[%emt 1:29:59]} 7. Nc3 {[%emt 0:00:59]} d5 {[%emt 0:00:00]} 8. cxd5 {[%emt 0:00:44]} exd5 {[%emt 0:00:00]} 9. Bf4 {[%emt 0:00:11]} Nbd7 {[%emt 0:00:00]} 10. Rc1 {[%emt 0:00:32]} c5 {[%emt 0:00:00]} 11. Ne5 {[%emt 0:03:07]} cxd4 {[%emt 0:00:00]} 12. Qxd4 {[%emt 1:25:38]} Bc5 {[%emt 0:00:00]} 13. Qd3 {[%emt 0:00:00]} Re8 {[%emt 0:00:00]} 14. Nxd7 {[%emt 0:00:00]} Qxd7 {[%emt 0:00:00]} 15. Bg5 {[%emt 0:00:00]} Re5 {[%emt 0:00:00]} 16. Bxf6 {[%emt 0:00:00]} gxf6 {[%emt 0:00:00]} 17. Ne4 {[%emt 0:00:00]} Qe7 {[%emt 0:00:00]} 18. Nxc5 {[%emt 0:00:00]} bxc5 {[%emt 0:00:00]} 19. Qb5 {[%emt 0:00:00]} Rc8 {[%emt 0:00:00]} 20. e3 {[%emt 0:00:00]} Rc7 {[%emt 0:00:00]} 21. Qa5 {[%emt 0:00:00]} Re6 {[%emt 0:00:00]} 22. Qa4 {[%emt 0:00:00]} Ra6 {[%emt 0:00:00]} 23. Qg4+ {[%emt 0:00:00]} Kh8 {[%emt 0:00:00]} 24. Rfd1 {[%emt 0:00:00]} Qe5 {[%emt 0:00:00]} 25. a3 {[%emt 0:00:00]} Rb6 {[%emt 0:00:00]} 26. Rc2 {[%emt 0:00:00]} Rd6 {[%emt 0:04:55]} 27. Rdc1 {[%emt 0:00:00]} c4 {[%emt 0:02:44]} 28. Rd1 {[%emt 0:00:00]} Bc8 {[%emt 0:01:20]} 29. Qd4 {[%emt 0:00:00]} Be6 {[%emt 0:00:47]} 30. e4 {[%emt 0:02:41]} Rcd7 {[%emt 0:01:27]} 31. Qxe5 {[%emt 0:00:29]} fxe5 {[%emt 0:00:05]} 32. exd5 {[%emt 0:00:07]} Kg7 {[%emt 0:00:55]} 33. Rdd2 {[%emt 0:02:06]} Bxd5 {[%emt 0:00:37]} 34. Bxd5 {[%emt 0:00:34]} Rxd5 {[%emt 0:00:02]} 35. Rxd5 {[%emt 0:00:08]} Rxd5 {[%emt 0:00:01]} 36. Rxc4 {[%emt 0:00:07]} a5 {[%emt 0:00:33]} 37. Kg2 {[%emt 0:00:39]} Rd2 {[%emt 0:01:03]} 38. b4 {[%emt 0:02:40]} a4 {[%emt 0:00:45]} 39. b5 {[%emt 0:00:36]} Rb2 {[%emt 0:00:01]} 40. Rxa4 {[%emt 0:00:31]} Rxb5 {[%emt 0:00:02]} 41. Rb4 {[%emt 0:00:08]} Rc5 {[%emt 0:00:26]} 42. a4 {[%emt 0:00:07]} Rc3 {[%emt 0:00:01]} 43. a5 {[%emt 0:01:08]} Ra3 {[%emt 0:00:01]} 44. Rb5 {[%emt 0:00:06]} f6 {[%emt 0:00:13]} 45. Rb7+ {[%emt 0:00:25]} Kg6 {[%emt 0:00:01]} 46. Ra7 {[%emt 0:00:15]} Kh6 {[%emt 0:01:28]} 47. a6 {[%emt 0:00:28]} Kg6 {[%emt 0:00:04]} 48. Ra8 {[%emt 0:00:04]} Kg7 {[%emt 0:00:23]} 49. Kh3 {[%emt 0:01:57]} Ra4 {[%emt 0:01:09]} 50. g4 {[%emt 0:01:36]} Ra3+ {[%emt 0:00:02]} 51. Kh4 {[%emt 0:00:17]} Ra2 {[%emt 0:00:27]} 52. a7 {[%emt 0:00:10]} h6 {[%emt 0:00:49]} 53. h3 {[%emt 0:00:27]} Ra3 {[%emt 0:00:43]} 54. f3 {[%emt 0:00:19]} Ra5 {[%emt 0:01:45]} 55. Kg3 {[%emt 0:00:31]} Ra2 {[%emt 0:00:01]} 56. h4 {[%emt 0:00:07]} Ra3 {[%emt 0:00:19]} 57. Kf2 {[%emt 0:00:07]} Ra2+ {[%emt 0:00:01]} 58. Ke3 {[%emt 0:00:07]} Ra4 {[%emt 0:00:44]} 59. Kd3 {[%emt 0:00:09]} Ra3+ {[%emt 0:00:07]} 60. Ke4 {[%emt 0:00:14]} Ra4+ {[%emt 0:00:22]} 61. Kd5 {[%emt 0:00:07]} Ra6 {[%emt 0:00:32]} 62. Kc5 {[%emt 0:00:26]} Ra1 {[%emt 0:00:27]} 63. Kb6 {[%emt 0:00:19]} Rb1+ {[%emt 0:00:07]} 64. Kc7 {[%emt 0:00:09]} Ra1 {[%emt 0:00:16]} 65. Kd6 {[%emt 0:00:24]} Ra6+ {[%emt 0:00:17]} 66. Ke7 {[%emt 0:00:07]} Ra1 {[%emt 0:00:16]} 67. Ke6 {[%emt 0:03:56]} Ra6+ {[%emt 0:00:05]} 68. Kf5 {[%emt 0:00:14]} Ra5 {[%emt 0:01:29]} 69. Ke6 {[%emt 0:02:49]} Ra6+ {[%emt 0:00:03]} 70. Kd5 {[%emt 0:00:17]} Ra1 {[%emt 0:01:00]} 71. Kc5 {[%emt 0:00:39]} Ra2 {[%emt 0:00:14]} 72. Kd6 {[%emt 0:00:25]} Ra6+ {[%emt 0:00:10]} 73. Kd7 {[%emt 0:00:21]} Ra1 {[%emt 0:00:19]} 74. h5 {[%emt 0:00:13]} Ra2 {[%emt 0:00:43]} 75. Ke8 {[%emt 0:00:09]} Ra3 {[%emt 0:00:50]} 76. Ke7 {[%emt 0:00:06]} Ra1 {[%emt 0:00:15]} 77. Ke6 {[%emt 0:00:47]} Ra6+ {[%emt 0:00:10]} 78. Kf5 {[%emt 0:00:06]} Ra3 {[%emt 0:00:58]} 79. g5 {[%emt 0:01:34]} fxg5 {[%emt 0:02:45]} 80. Kxe5 {[%emt 0:00:06]} Ra1 {[%emt 0:00:13]} 81. Ke6 {[%emt 0:00:44]} Re1+ {[%emt 0:00:32]} 82. Kd6 {[%emt 0:00:09]} Rd1+ {[%emt 0:00:02]} 83. Kc6 {[%emt 0:00:27]} Rc1+ {[%emt 0:00:02]} 84. Kd5 {[%emt 0:00:21]} Rd1+ {[%emt 0:00:09]} 85. Ke4 {[%emt 0:00:03]} Re1+ {[%emt 0:00:36]} 86. Kf5 {[%emt 0:00:07]} Ra1 {[%emt 0:00:06]} 87. Kg4 {[%emt 0:00:17]} Rg1+ {[%emt 0:00:10]} 88. Kh3 {[%emt 0:00:05]} Ra1 {[%emt 0:00:05]} 89. Kg3 {[%emt 0:00:28]} Rg1+ {[%emt 0:00:08]} 90. Kf2 {[%emt 0:00:03]} Ra1 {[%emt 0:00:02]} 91. Kg2 {[%emt 0:00:17]} Ra2+ {[%emt 0:00:09]} 92. Kg3 {[%emt 0:00:04]} Ra1 {[%emt 0:00:04]} 93. Kg4 {[%emt 0:00:19]} Rg1+ {[%emt 0:00:07]} 94. Kf5 {[%emt 0:00:01]} Ra1 {[%emt 0:00:05]} 95. Ke6 {[%emt 0:00:02]} Re1+ {[%emt 0:00:05]} 96. Kf5 {[%emt 0:00:06]} Ra1 {[%emt 0:00:08]} 97. Ke6 {[%emt 0:00:01]} Re1+ {[%emt 0:00:06]} 98. Kf5 {[%emt 0:00:03]} Ra1 {[%emt 0:00:05]} 1/2-1/2

[Event "Charlotte Fall IM-D 2023"]
[Site "Charlotte"]
[Date "2023.11.21"]
[Round "8.4"]
[White "Eckert, Doug"]
[Black "Leiva, Gianmarco"]
[Result "1/2-1/2"]
[ECO "A29"]
[WhiteElo "2120"]
[BlackElo "2403"]
[Annotator "RC"]
[PlyCount "98"]
[EventDate "2023.11.17"]
[EventType "tourn"]
[EventCountry "USA"]
[SourceTitle "playchess.com"]
[Source "ChessBase"]
[SourceQuality "1"]
[TimeControl "5400+30"]

1. c4 {[%emt 0:01:42]} e5 {[%emt 0:08:24]} 2. Nc3 {[%emt 0:00:08]} Nf6 {[%emt 0:01:54]} 3. Nf3 {[%emt 0:00:05]} Nc6 {[%emt 0:00:36]} 4. g3 {[%emt 0:00:09]} Bb4 {[%emt 0:03:18]} 5. Nd5 {[%emt 0:00:39]} Bc5 {[%emt 0:05:49]} 6. Bg2 {[%emt 0:00:21]} d6 {[%emt 0:05:19]} 7. O-O {[%emt 0:03:47]} O-O {[%emt 0:07:42]} 8. d3 {[%emt 0:02:59]} h6 {[%emt 0:02:26]} 9. e3 {[%emt 0:05:40]} Bb6 {[%emt 0:06:55]} 10. d4 {[%emt 0:15:42]} Re8 {[%emt 0:01:24]} 11. Nxb6 {[%emt 0:08:01]} axb6 {[%emt 0:00:27]} 12. dxe5 {[%emt 0:00:16]} dxe5 {[%emt 0:00:51]} 13. Qxd8 {[%emt 0:57:31]} Rxd8 {[%emt 0:03:23]} 14. b3 {[%emt 0:00:00]} e4 {[%emt 0:04:24]} 15. Nd4 {[%emt 0:00:00]} Nxd4 {[%emt 0:10:14]} 16. exd4 {[%emt 0:00:00]} Rxd4 {[%emt 0:00:16]} 17. Bb2 {[%emt 0:00:00]} Rd2 {[%emt 0:00:05]} 18. Bxf6 {[%emt 0:00:00]} gxf6 {[%emt 0:02:33]} 19. Bxe4 {[%emt 0:00:00]} Raxa2 {[%emt 0:02:24]} 20. Rxa2 {[%emt 0:00:00]} Rxa2 {[%emt 0:00:34]} 21. Rd1 {[%emt 0:00:00]} Kg7 {[%emt 0:00:04]} 22. Kg2 {[%emt 0:00:00]} Rb2 {[%emt 0:01:00]} 23. Rd3 {[%emt 0:00:00]} c6 {[%emt 0:10:29]} 24. Rc3 {[%emt 0:00:00]} Be6 {[%emt 0:00:55]} 25. Kf3 {[%emt 0:00:00]} Kf8 {[%emt 0:00:40]} 26. Bc2 {[%emt 0:00:00]} Ke7 {[%emt 0:00:39]} 27. Ke3 {[%emt 0:00:00]} Kd6 {[%emt 0:00:24]} 28. Kd4 {[%emt 0:00:00]} Kc7 {[%emt 0:01:25]} 29. Ke3 {[%emt 0:00:00]} Kd6 {[%emt 0:05:48]} 30. Kd4 {[%emt 0:00:00]} Bh3 {[%emt 0:00:29]} 31. f3 {[%emt 0:00:00]} Be6 {[%emt 0:02:03]} 32. h4 {[%emt 0:00:00]} Bd7 {[%emt 0:01:05]} 33. g4 {[%emt 0:00:00]} Be6 {[%emt 0:00:30]} 34. h5 {[%emt 0:01:00]} Bd7 {[%emt 0:00:58]} 35. Ke3 {[%emt 0:00:35]} f5 {[%emt 0:03:23]} 36. Kf4 {[%emt 0:04:05]} fxg4 {[%emt 0:00:11]} 37. fxg4 {[%emt 0:00:03]} f6 {[%emt 0:00:04]} 38. Bf5 {[%emt 0:01:26]} Be8 {[%emt 0:02:21]} 39. Rd3+ {[%emt 0:00:44]} Ke7 {[%emt 0:00:50]} 40. Re3+ {[%emt 0:00:18]} Kf8 {[%emt 0:00:05]} 41. Rd3 {[%emt 0:02:36]} Ke7 {[%emt 0:06:03]} 42. Re3+ {[%emt 0:00:05]} Kf8 {[%emt 0:00:00]} 43. Rd3 {[%emt 0:00:00]} Rf2+ {[%emt 0:00:28]} 44. Ke3 {[%emt 0:00:53]} Rh2 {[%emt 0:01:10]} 45. Rd8 {[%emt 0:00:35]} Ke7 {[%emt 0:00:45]} 46. Rb8 {[%emt 0:00:54]} Rh3+ {[%emt 0:00:01]} 47. Kf4 {[%emt 0:01:11]} Rxb3 {[%emt 0:00:30]} 48. Rxb7+ {[%emt 0:00:04]} Kd6 {[%emt 0:00:01]} 49. c5+ {[%emt 0:01:01]} Kxc5 {[%emt 0:02:54]} 1/2-1/2

[Event "Charlotte Fall IM-D 2023"]
[Site "Charlotte"]
[Date "2023.11.21"]
[Round "9.2"]
[White "Leiva, Gianmarco"]
[Black "Wan, Joseph"]
[Result "1-0"]
[ECO "D26"]
[WhiteElo "2403"]
[BlackElo "2242"]
[Annotator "RC"]
[PlyCount "109"]
[EventDate "2023.11.17"]
[EventType "tourn"]
[EventCountry "USA"]
[SourceTitle "playchess.com"]
[Source "ChessBase"]
[SourceQuality "1"]
[TimeControl "5400+30"]

1. d4 {[%emt 0:14:26]} d5 {[%emt 0:01:25]} 2. c4 {[%emt 0:00:59]} dxc4 {[%emt 0:02:12]} 3. e3 {[%emt 0:00:37]} Nf6 {[%emt 0:00:06]} 4. Bxc4 {[%emt 0:01:14]} e6 {[%emt 0:00:32]} 5. Nf3 {[%emt 0:01:26]} a6 {[%emt 0:00:07]} 6. O-O {[%emt 0:05:25]} b5 {[%emt 0:01:09]} 7. Be2 {[%emt 0:13:09]} Bb7 {[%emt 0:01:16]} 8. a4 {[%emt 0:05:12]} b4 {[%emt 0:00:17]} 9. b3 {[%emt 0:00:04]} Nbd7 {[%emt 0:02:26]} 10. Bb2 {[%emt 0:00:34]} Be7 {[%emt 0:00:31]} 11. Nbd2 {[%emt 0:00:06]} O-O {[%emt 0:00:13]} 12. Bc4 {[%emt 0:10:47]} c5 {[%emt 0:12:20]} 13. Qe2 {[%emt 0:00:35]} cxd4 {[%emt 0:01:28]} 14. Bxd4 {[%emt 0:00:17]} Bc5 {[%emt 0:03:09]} 15. Bb2 {[%emt 0:00:49]} Qe7 {[%emt 0:01:53]} 16. Rac1 {[%emt 0:14:57]} e5 {[%emt 0:06:27]} 17. e4 {[%emt 0:02:45]} Bb6 {[%emt 0:19:27]} 18. Bd3 {[%emt 0:04:38]} Rfd8 {[%emt 0:05:07]} 19. Nc4 {[%emt 0:08:11]} Bc7 {[%emt 0:02:49]} 20. Ne3 {[%emt 0:00:03]} Nc5 {[%emt 0:01:50]} 21. Nf5 {[%emt 0:00:14]} Qf8 {[%emt 0:00:06]} 22. Bc4 {[%emt 0:05:23]} Bxe4 {[%emt 0:05:24]} 23. Ng5 {[%emt 0:00:06]} Bxf5 {[%emt 0:09:44]} 24. Nxf7 {[%emt 0:01:07]} Be6 {[%emt 0:01:29]} 25. Nxd8 {[%emt 0:01:16]} Qxd8 {[%emt 0:08:32]} 26. Bxe5 {[%emt 0:00:11]} Bxe5 {[%emt 0:05:38]} 27. Qxe5 {[%emt 0:01:19]} Bxc4 {[%emt 0:00:11]} 28. Rxc4 {[%emt 0:00:05]} Ncd7 {[%emt 0:02:03]} 29. Qe6+ {[%emt 0:01:28]} Kh8 {[%emt 0:00:12]} 30. Rxb4 {[%emt 0:02:31]} Nc5 {[%emt 0:01:03]} 31. Qe3 {[%emt 0:00:31]} Qf8 {[%emt 0:01:15]} 32. Rc4 {[%emt 0:00:21]} Ncd7 {[%emt 0:00:18]} 33. b4 {[%emt 0:01:10]} Re8 {[%emt 0:00:27]} 34. Qd2 {[%emt 0:00:54]} Ne5 {[%emt 0:00:27]} 35. Rcc1 {[%emt 0:01:27]} Ne4 {[%emt 0:01:44]} 36. Qd4 {[%emt 0:01:16]} Ng6 {[%emt 0:04:30]} 37. Rfe1 {[%emt 0:01:20]} Nf6 {[%emt 0:00:37]} 38. Rxe8 {[%emt 0:00:56]} Qxe8 {[%emt 0:00:07]} 39. b5 {[%emt 0:00:09]} axb5 {[%emt 0:00:09]} 40. a5 {[%emt 0:00:05]} Qa8 {[%emt 0:00:37]} 41. Ra1 {[%emt 0:00:55]} Nd5 {[%emt 0:00:16]} 42. g3 {[%emt 0:01:25]} b4 {[%emt 0:00:35]} 43. a6 {[%emt 0:00:08]} Nc3 {[%emt 0:01:16]} 44. Qe3 {[%emt 0:00:33]} h6 {[%emt 0:00:32]} 45. a7 {[%emt 0:00:14]} Nd5 {[%emt 0:00:26]} 46. Qe4 {[%emt 0:00:39]} Nge7 {[%emt 0:00:35]} 47. Qe5 {[%emt 0:00:10]} Kh7 {[%emt 0:00:31]} 48. Qb8 {[%emt 0:00:12]} Qc6 {[%emt 0:00:30]} 49. a8=Q {[%emt 0:00:11]} Qc3 {[%emt 0:00:23]} 50. Qh8+ {[%emt 0:01:51]} Kg6 {[%emt 0:00:03]} 51. Qhe8+ {[%emt 0:00:17]} Kh7 {[%emt 0:00:22]} 52. Rd1 {[%emt 0:00:23]} Qf3 {[%emt 0:00:42]} 53. Re1 {[%emt 0:00:36]} Qf6 {[%emt 0:00:50]} 54. Qa1 {[%emt 0:00:51]} Qd6 {[%emt 0:00:22]} 55. Qf7 {[%emt 0:00:20]} 1-0

[Event "Charlotte Fall IM-D 2023"]
[Site "Charlotte"]
[Date "2023.11.21"]
[Round "9.3"]
[White "Ansh M Shah"]
[Black "Eckert, Doug"]
[Result "1/2-1/2"]
[ECO "E05"]
[WhiteElo "2169"]
[BlackElo "2120"]
[Annotator "RC"]
[PlyCount "121"]
[EventDate "2023.11.17"]
[EventType "tourn"]
[EventCountry "USA"]
[SourceTitle "playchess.com"]
[Source "ChessBase"]
[SourceQuality "1"]
[TimeControl "5400+30"]

1. Nf3 {[%emt 0:06:51]} d5 {[%emt 0:00:07]} 2. d4 {[%emt 0:01:09]} Nf6 {[%emt 0:00:09]} 3. g3 {[%emt 0:00:15]} e6 {[%emt 0:00:21]} 4. Bg2 {[%emt 0:00:09]} Be7 {[%emt 0:00:05]} 5. O-O {[%emt 0:00:10]} O-O {[%emt 0:00:09]} 6. c4 {[%emt 0:00:05]} dxc4 {[%emt 0:00:08]} 7. Qc2 {[%emt 0:00:09]} b5 {[%emt 0:00:17]} 8. a4 {[%emt 0:00:17]} b4 {[%emt 0:00:21]} 9. Nbd2 {[%emt 0:01:41]} Bb7 {[%emt 0:00:35]} 10. Nxc4 {[%emt 0:01:13]} c5 {[%emt 0:01:41]} 11. Rd1 {[%emt 0:11:38]} Be4 {[%emt 0:01:38]} 12. Qd2 {[%emt 0:06:21]} Nbd7 {[%emt 0:13:57]} 13. Qf4 {[%emt 0:15:13]} Bc2 {[%emt 0:02:31]} 14. Re1 {[%emt 0:00:55]} Nd5 {[%emt 0:02:09]} 15. Qd2 {[%emt 0:00:04]} Be4 {[%emt 0:01:02]} 16. b3 {[%emt 0:10:25]} cxd4 {[%emt 0:13:59]} 17. Nxd4 {[%emt 0:01:29]} Bxg2 {[%emt 0:00:05]} 18. Kxg2 {[%emt 0:00:03]} Nc5 {[%emt 0:03:45]} 19. Bb2 {[%emt 0:02:31]} Bf6 {[%emt 0:04:08]} 20. Rad1 {[%emt 0:04:28]} Ne4 {[%emt 0:03:00]} 21. Qd3 {[%emt 0:02:15]} Ndc3 {[%emt 0:00:12]} 22. Bxc3 {[%emt 0:03:27]} Nxc3 {[%emt 0:00:05]} 23. Rd2 {[%emt 0:00:09]} Rc8 {[%emt 0:07:09]} 24. Nb5 {[%emt 0:15:22]} Nxb5 {[%emt 0:07:42]} 25. Qxd8 {[%emt 0:06:10]} Rfxd8 {[%emt 0:00:15]} 26. Rxd8+ {[%emt 0:01:16]} Rxd8 {[%emt 0:00:06]} 27. axb5 {[%emt 0:00:02]} Rd5 {[%emt 0:09:36]} 28. b6 {[%emt 0:03:45]} axb6 {[%emt 0:00:05]} 29. Nxb6 {[%emt 0:00:02]} Rd2 {[%emt 0:00:32]} 30. Na4 {[%emt 0:02:36]} g6 {[%emt 0:02:47]} 31. Kf3 {[%emt 0:00:42]} h5 {[%emt 0:05:54]} 32. Rc1 {[%emt 0:01:39]} g5 {[%emt 0:00:23]} 33. Ke3 {[%emt 0:01:27]} Rd5 {[%emt 0:01:03]} 34. Rc4 {[%emt 0:00:50]} Rb5 {[%emt 0:00:52]} 35. h3 {[%emt 0:00:44]} Be7 {[%emt 0:01:24]} 36. g4 {[%emt 0:00:38]} hxg4 {[%emt 0:00:18]} 37. hxg4 {[%emt 0:00:02]} f5 {[%emt 0:00:41]} 38. Kf3 {[%emt 0:01:35]} Kf7 {[%emt 0:03:39]} 39. Nb2 {[%emt 0:00:56]} Kf6 {[%emt 0:00:53]} 40. Nd3 {[%emt 0:00:44]} Ra5 {[%emt 0:00:12]} 41. gxf5 {[%emt 0:00:36]} Kxf5 {[%emt 0:01:38]} 42. Nxb4 {[%emt 0:00:50]} Ra3 {[%emt 0:00:26]} 43. Nc6 {[%emt 0:00:20]} Rxb3+ {[%emt 0:00:37]} 44. e3 {[%emt 0:00:33]} Bf6 {[%emt 0:00:52]} 45. Rc5+ {[%emt 0:00:16]} Kg6 {[%emt 0:00:37]} 46. Na5 {[%emt 0:00:50]} Rb6 {[%emt 0:02:29]} 47. Rc6 {[%emt 0:00:22]} Rxc6 {[%emt 0:04:13]} 48. Nxc6 {[%emt 0:00:01]} Kh5 {[%emt 0:00:25]} 49. Ke4 {[%emt 0:01:07]} g4 {[%emt 0:01:03]} 50. Nb4 {[%emt 0:00:27]} Bh4 {[%emt 0:00:33]} 51. Nd3 {[%emt 0:00:05]} g3 {[%emt 0:03:30]} 52. Nf4+ {[%emt 0:00:15]} Kg5 {[%emt 0:00:31]} 53. f3 {[%emt 0:01:09]} Kf6 {[%emt 0:00:43]} 54. Ng2 {[%emt 0:00:17]} Bg5 {[%emt 0:00:03]} 55. Ne1 {[%emt 0:00:41]} Bh6 {[%emt 0:00:19]} 56. f4 {[%emt 0:00:32]} e5 {[%emt 0:01:33]} 57. fxe5+ {[%emt 0:00:04]} Ke6 {[%emt 0:00:04]} 58. Ng2 {[%emt 0:00:48]} Bg5 {[%emt 0:01:04]} 59. Kf3 {[%emt 0:00:38]} Bxe3 {[%emt 0:00:17]} 60. Nxe3 {[%emt 0:00:11]} Kxe5 {[%emt 0:00:04]} 61. Kxg3 {[%emt 0:00:05]} 1/2-1/2

[Event "Charlotte Fall IM-D 2023"]
[Site "Charlotte"]
[Date "2023.11.21"]
[Round "9.4"]
[White "Girsh, Daniel"]
[Black "Matta, Nicholas"]
[Result "1/2-1/2"]
[ECO "B12"]
[WhiteElo "2221"]
[BlackElo "2287"]
[Annotator "RC"]
[PlyCount "76"]
[EventDate "2023.11.17"]
[EventType "tourn"]
[EventCountry "USA"]
[SourceTitle "playchess.com"]
[Source "ChessBase"]
[SourceQuality "1"]
[TimeControl "5400+30"]

1. e4 {[%emt 0:01:59]} c6 {[%emt 0:00:06]} 2. d4 {[%emt 0:00:03]} d5 {[%emt 0:00:15]} 3. e5 {[%emt 0:00:05]} Bf5 {[%emt 0:00:08]} 4. h4 {[%emt 0:00:05]} h5 {[%emt 0:00:08]} 5. Bd3 {[%emt 0:00:03]} Bxd3 {[%emt 0:00:14]} 6. Qxd3 {[%emt 0:00:09]} Qa5+ {[%emt 0:00:07]} 7. Nd2 {[%emt 0:00:04]} e6 {[%emt 0:00:10]} 8. Ne2 {[%emt 0:02:54]} Ne7 {[%emt 0:00:14]} 9. Ng3 {[%emt 0:01:00]} c5 {[%emt 0:02:49]} 10. b4 {[%emt 0:05:12]} Qxb4 {[%emt 0:06:36]} 11. c3 {[%emt 0:00:46]} Qa4 {[%emt 0:06:00]} 12. O-O {[%emt 0:01:30]} Ng6 {[%emt 0:05:22]} 13. Rb1 {[%emt 0:14:32]} Qa6 {[%emt 0:07:17]} 14. Qe3 {[%emt 0:09:32]} Nxh4 {[%emt 0:06:36]} 15. c4 {[%emt 0:02:06]} cxd4 {[%emt 0:08:30]} 16. Qxd4 {[%emt 0:01:02]} Be7 {[%emt 0:02:38]} 17. cxd5 {[%emt 0:07:26]} exd5 {[%emt 0:01:13]} 18. Re1 {[%emt 0:00:04]} Nc6 {[%emt 0:12:10]} 19. Qxd5 {[%emt 0:00:48]} Rd8 {[%emt 0:00:28]} 20. Qb3 {[%emt 0:13:36]} Bb4 {[%emt 0:01:56]} 21. e6 {[%emt 0:05:37]} O-O {[%emt 0:01:51]} 22. Re4 {[%emt 0:00:39]} Rd3 {[%emt 0:10:20]} 23. Qd1 {[%emt 0:07:28]} Bxd2 {[%emt 0:14:56]} 24. Qxh5 {[%emt 0:06:35]} Ng6 {[%emt 0:08:50]} 25. exf7+ {[%emt 0:00:48]} Kxf7 {[%emt 0:00:32]} 26. Qf5+ {[%emt 0:02:29]} Kg8 {[%emt 0:00:01]} 27. Qxg6 {[%emt 0:00:39]} Bxc1 {[%emt 0:00:08]} 28. Qe6+ {[%emt 0:00:55]} Rf7 {[%emt 0:01:06]} 29. Rxc1 {[%emt 0:00:08]} Qa3 {[%emt 0:00:34]} 30. Rce1 {[%emt 0:02:15]} Qd6 {[%emt 0:00:20]} 31. Qc4 {[%emt 0:00:43]} Qd5 {[%emt 0:01:31]} 32. Re8+ {[%emt 0:00:02]} Rf8 {[%emt 0:00:09]} 33. Qf4 {[%emt 0:00:03]} Qf7 {[%emt 0:00:21]} 34. Rxf8+ {[%emt 0:00:01]} Kxf8 {[%emt 0:00:03]} 35. Qg4 {[%emt 0:04:03]} Rd4 {[%emt 0:00:40]} 36. Qg5 {[%emt 0:01:59]} Rd5 {[%emt 0:00:07]} 37. Qh4 {[%emt 0:00:41]} Kg8 {[%emt 0:00:09]} 38. Qc4 {[%emt 0:00:34]} Rd8 {[%emt 0:00:19]} 1/2-1/2